[Event "Late-Titled-Tuesday-Blitz-February-27-2024"]
[Site "Chess.com"]
[Date "2024.02.27"]
[Round "2"]
[White "MajorCoast"]
[Black "nindjaxx8"]
[Result "0-1"]
[WhiteElo "2225"]
[BlackElo "2675"]
[TimeControl "180+1"]
[EndTime "14:17:30 PST"]
[Termination "nindjaxx8 won on time"]

1. d4 {[%clk 0:03:00.9]} 1... d5 {[%clk 0:02:52.2]} 2. Bf4 {[%clk 0:03:00.3]}
2... Nf6 {[%clk 0:02:51.8]} 3. e3 {[%clk 0:03:00.9]} 3... e6 {[%clk 0:02:52.3]}
4. Bd3 {[%clk 0:02:59.7]} 4... Be7 {[%clk 0:02:52.9]} 5. c3 {[%clk 0:03:00.1]}
5... O-O {[%clk 0:02:53.6]} 6. Nf3 {[%clk 0:03:00.5]} 6... b6 {[%clk 0:02:54.3]}
7. Nbd2 {[%clk 0:03:00.5]} 7... Bb7 {[%clk 0:02:54.9]} 8. O-O {[%clk 0:03:00.7]}
8... Nbd7 {[%clk 0:02:53.7]} 9. Ne5 {[%clk 0:03:00.9]} 9... c5 {[%clk
0:02:53.6]} 10. Bg5 {[%clk 0:02:58.4]} 10... Ne4 {[%clk 0:02:51.6]} 11. Bxe7
{[%clk 0:02:56.3]} 11... Qxe7 {[%clk 0:02:51.4]} 12. Nxd7 {[%clk 0:02:53.4]}
12... Qxd7 {[%clk 0:02:51]} 13. f3 {[%clk 0:02:54]} 13... Nxd2 {[%clk
0:02:50.3]} 14. Qxd2 {[%clk 0:02:54.9]} 14... cxd4 {[%clk 0:02:50.6]} 15. exd4
{[%clk 0:02:54.8]} 15... a6 {[%clk 0:02:50.7]} 16. Rfe1 {[%clk 0:02:49.8]} 16...
b5 {[%clk 0:02:50.5]} 17. Re5 {[%clk 0:02:48.8]} 17... Rac8 {[%clk 0:02:49.3]}
18. Rh5 {[%clk 0:02:41.7]} 18... g6 {[%clk 0:02:47.7]} 19. Qh6 {[%clk 0:02:38]}
19... f5 {[%clk 0:02:46.8]} 20. Rg5 {[%clk 0:02:20.4]} 20... Rc6 {[%clk
0:02:36.6]} 21. h4 {[%clk 0:02:16.3]} 21... Qg7 {[%clk 0:02:36.7]} 22. Qxg7+
{[%clk 0:02:15.9]} 22... Kxg7 {[%clk 0:02:37.6]} 23. h5 {[%clk 0:02:16.5]} 23...
Kf6 {[%clk 0:02:37.6]} 24. f4 {[%clk 0:02:14.2]} 24... Rb6 {[%clk 0:02:24.3]}
25. a3 {[%clk 0:02:13.5]} 25... a5 {[%clk 0:02:23.4]} 26. h6 {[%clk 0:02:08.5]}
26... b4 {[%clk 0:02:14.8]} 27. axb4 {[%clk 0:02:06.9]} 27... axb4 {[%clk
0:02:15.7]} 28. Ra7 {[%clk 0:02:04.3]} 28... bxc3 {[%clk 0:02:07.4]} 29. bxc3
{[%clk 0:02:05.2]} 29... Rc8 {[%clk 0:02:06.1]} 30. Ra3 {[%clk 0:01:40.3]} 30...
Rbc6 {[%clk 0:01:56.6]} 31. Rb3 {[%clk 0:01:21.9]} 31... R8c7 {[%clk 0:01:56.7]}
32. Rg3 {[%clk 0:01:02.3]} 32... Rxc3 {[%clk 0:01:54.7]} 33. Rb6 {[%clk
0:01:02.3]} 33... R3c6 {[%clk 0:01:49.7]} 34. Rb3 {[%clk 0:00:48.6]} 34... Rc3
{[%clk 0:01:28.7]} 35. Rb6 {[%clk 0:00:44.6]} 35... Rc1+ {[%clk 0:01:28.9]} 36.
Kf2 {[%clk 0:00:40.4]} 36... Bc8 {[%clk 0:01:24.7]} 37. Re3 {[%clk 0:00:38]}
37... Ra7 {[%clk 0:01:23.6]} 38. Bb5 {[%clk 0:00:33.2]} 38... Ra2+ {[%clk
0:01:15.2]} 39. Kg3 {[%clk 0:00:32.5]} 39... Rb2 {[%clk 0:01:10.9]} 40. Rc6
{[%clk 0:00:15.6]} 40... Rxc6 {[%clk 0:01:04.4]} 41. Bxc6 {[%clk 0:00:16.5]}
41... Rd2 {[%clk 0:01:04.3]} 42. Rc3 {[%clk 0:00:14.1]} 42... Rxd4 {[%clk
0:00:48.5]} 43. Be8 {[%clk 0:00:14]} 43... Rc4 {[%clk 0:00:46.7]} 44. Ra3 {[%clk
0:00:10.5]} 44... g5 {[%clk 0:00:46.1]} 45. fxg5+ {[%clk 0:00:07.4]} 45... Kxg5
{[%clk 0:00:46]} 46. Ra7 {[%clk 0:00:07.9]} 46... Kxh6 {[%clk 0:00:45.9]} 47.
Re7 {[%clk 0:00:05.3]} 47... Kg5 {[%clk 0:00:39.5]} 48. Rg7+ {[%clk 0:00:04.4]}
48... Kf6 {[%clk 0:00:39.4]} 49. Rxh7 {[%clk 0:00:03.6]} 49... Rc3+ {[%clk
0:00:40.1]} 0-1

[Event "Late-Titled-Tuesday-Blitz-February-27-2024"]
[Site "Chess.com"]
[Date "2024.02.27"]
[Round "2"]
[White "Bryanl106"]
[Black "SchmakAttack"]
[Result "1-0"]
[WhiteElo "2566"]
[BlackElo "2811"]
[TimeControl "180+1"]
[EndTime "14:17:31 PST"]
[Termination "Bryanl106 won by resignation"]

1. e4 {[%clk 0:02:59.7]} 1... e6 {[%clk 0:02:57.2]} 2. d4 {[%clk 0:02:58.6]}
2... d5 {[%clk 0:02:57.7]} 3. Nd2 {[%clk 0:02:57]} 3... c5 {[%clk 0:02:57.6]} 4.
exd5 {[%clk 0:02:54.3]} 4... Qxd5 {[%clk 0:02:58.5]} 5. dxc5 {[%clk 0:02:53.9]}
5... Nf6 {[%clk 0:02:56.8]} 6. Ngf3 {[%clk 0:02:53.5]} 6... Bxc5 {[%clk
0:02:56.5]} 7. Bc4 {[%clk 0:02:53.4]} 7... Qc6 {[%clk 0:02:55.3]} 8. Qe2 {[%clk
0:02:53.6]} 8... O-O {[%clk 0:02:54.6]} 9. O-O {[%clk 0:02:53.8]} 9... a6 {[%clk
0:02:54.1]} 10. c3 {[%clk 0:02:52.2]} 10... b5 {[%clk 0:02:50.9]} 11. Bd3 {[%clk
0:02:52.1]} 11... Bb7 {[%clk 0:02:50.8]} 12. Nb3 {[%clk 0:02:44.6]} 12... Nbd7
{[%clk 0:02:44.1]} 13. Bg5 {[%clk 0:02:42.9]} 13... Be7 {[%clk 0:02:21.9]} 14.
Na5 {[%clk 0:02:41.7]} 14... Qc7 {[%clk 0:02:21.2]} 15. Nxb7 {[%clk 0:02:41.9]}
15... Qxb7 {[%clk 0:02:22.1]} 16. Rad1 {[%clk 0:02:41.8]} 16... Rad8 {[%clk
0:02:18]} 17. Bc2 {[%clk 0:02:39.5]} 17... Nc5 {[%clk 0:01:51.9]} 18. Be3 {[%clk
0:02:31.9]} 18... Na4 {[%clk 0:01:42]} 19. Bxa4 {[%clk 0:02:23.6]} 19... bxa4
{[%clk 0:01:42.9]} 20. Bd4 {[%clk 0:02:23.9]} 20... Nd5 {[%clk 0:01:40.1]} 21.
c4 {[%clk 0:02:10.5]} 21... Nb4 {[%clk 0:01:26]} 22. a3 {[%clk 0:02:08.9]} 22...
Nc6 {[%clk 0:01:24.4]} 23. Bc3 {[%clk 0:02:08.9]} 23... Bf6 {[%clk 0:01:19]} 24.
Bxf6 {[%clk 0:02:08.5]} 24... gxf6 {[%clk 0:01:19.9]} 25. Qe4 {[%clk 0:02:02.2]}
25... f5 {[%clk 0:01:13.7]} 26. Qe2 {[%clk 0:01:55.5]} 26... Qb3 {[%clk
0:01:05.2]} 27. h4 {[%clk 0:01:36.9]} 27... h6 {[%clk 0:01:01.2]} 28. h5 {[%clk
0:01:35.7]} 28... Rfe8 {[%clk 0:01:00.6]} 29. Rfe1 {[%clk 0:01:34.2]} 29... Rxd1
{[%clk 0:00:37.6]} 30. Rxd1 {[%clk 0:01:35.1]} 30... Rd8 {[%clk 0:00:38.1]} 31.
Rxd8+ {[%clk 0:01:34.3]} 31... Nxd8 {[%clk 0:00:39]} 32. Ne5 {[%clk 0:01:32.2]}
32... Nb7 {[%clk 0:00:36.5]} 33. Qd2 {[%clk 0:01:15.7]} 33... Kg7 {[%clk
0:00:21.8]} 34. Qd7 {[%clk 0:01:10.2]} 34... Kf6 {[%clk 0:00:19.1]} 35. Nc6
{[%clk 0:00:29.8]} 35... Qxb2 {[%clk 0:00:15.1]} 36. Qe7+ {[%clk 0:00:29.2]}
36... Kg7 {[%clk 0:00:15.1]} 37. g3 {[%clk 0:00:21]} 37... Qb3 {[%clk
0:00:09.1]} 38. Ne5 {[%clk 0:00:19.7]} 38... Qd1+ {[%clk 0:00:08.9]} 39. Kg2
{[%clk 0:00:19.4]} 39... Nd6 {[%clk 0:00:07.3]} 40. Nd7 {[%clk 0:00:18.7]} 40...
Qd3 {[%clk 0:00:02.9]} 41. Qf8+ {[%clk 0:00:17.4]} 1-0

[Event "Late-Titled-Tuesday-Blitz-February-27-2024"]
[Site "Chess.com"]
[Date "2024.02.27"]
[Round "2"]
[White "SEBAZZANO"]
[Black "HajiyevKanan"]
[Result "1-0"]
[WhiteElo "2316"]
[BlackElo "2502"]
[TimeControl "180+1"]
[EndTime "14:17:31 PST"]
[Termination "SEBAZZANO won by checkmate"]

1. d4 {[%clk 0:03:00.9]} 1... d5 {[%clk 0:02:59.4]} 2. Bf4 {[%clk 0:03:00.5]}
2... c5 {[%clk 0:02:59.7]} 3. e4 {[%clk 0:03:00.1]} 3... cxd4 {[%clk 0:02:49.4]}
4. Qxd4 {[%clk 0:02:51.7]} 4... Nc6 {[%clk 0:02:42]} 5. Qxd5 {[%clk 0:02:50.8]}
5... Qxd5 {[%clk 0:02:41.4]} 6. exd5 {[%clk 0:02:51.7]} 6... Nb4 {[%clk
0:02:42.3]} 7. Na3 {[%clk 0:02:48.4]} 7... Nxd5 {[%clk 0:02:39]} 8. Bb5+ {[%clk
0:02:27]} 8... Bd7 {[%clk 0:02:34.8]} 9. Bxd7+ {[%clk 0:02:23.5]} 9... Kxd7
{[%clk 0:02:35.7]} 10. O-O-O {[%clk 0:02:23.4]} 10... Kc6 {[%clk 0:02:30.3]} 11.
Bg3 {[%clk 0:02:16.9]} 11... e6 {[%clk 0:02:20.2]} 12. Nf3 {[%clk 0:02:13.4]}
12... Bxa3 {[%clk 0:02:08.3]} 13. Ne5+ {[%clk 0:02:01.2]} 13... Kc5 {[%clk
0:02:08.1]} 14. Nxf7 {[%clk 0:01:32.7]} 14... Bb4 {[%clk 0:01:57.1]} 15. Nxh8
{[%clk 0:01:26.5]} 15... Nh6 {[%clk 0:01:56.6]} 16. a3 {[%clk 0:01:22.2]} 16...
Ba5 {[%clk 0:01:48.2]} 17. b4+ {[%clk 0:01:20.7]} 17... Bxb4 {[%clk 0:01:31.2]}
18. axb4+ {[%clk 0:01:21.6]} 18... Kxb4 {[%clk 0:01:29.7]} 19. Rhe1 {[%clk
0:01:08.9]} 19... Rxh8 {[%clk 0:01:16.4]} 20. Rxe6 {[%clk 0:01:04.2]} 20... Nc3
{[%clk 0:01:11.7]} 21. Rd7 {[%clk 0:00:52.9]} 21... b5 {[%clk 0:01:12]} 22. Rxa7
{[%clk 0:00:37.2]} 22... Nf5 {[%clk 0:01:11.8]} 23. Be5 {[%clk 0:00:26.3]} 23...
Nd5 {[%clk 0:01:03.3]} 24. g4 {[%clk 0:00:20.5]} 24... Nh4 {[%clk 0:00:56.6]}
25. Bxg7 {[%clk 0:00:19.1]} 25... Rc8 {[%clk 0:00:53.2]} 26. Kb2 {[%clk
0:00:18.3]} 26... Nf3 {[%clk 0:00:52.3]} 27. c3+ {[%clk 0:00:17.7]} 27... Kc4
{[%clk 0:00:46.8]} 28. Re4+ {[%clk 0:00:16.2]} 28... Kc5 {[%clk 0:00:45.7]} 29.
Bd4+ {[%clk 0:00:15.7]} 29... Kc4 {[%clk 0:00:35.2]} 30. Be3+ {[%clk 0:00:14.4]}
30... Kd3 {[%clk 0:00:35.6]} 31. Re6 {[%clk 0:00:05.7]} 31... Nxc3 {[%clk
0:00:23.6]} 32. Rd7+ {[%clk 0:00:04.4]} 32... Kc4 {[%clk 0:00:18.3]} 33. Ree7
{[%clk 0:00:04.6]} 33... Na4+ {[%clk 0:00:16.8]} 34. Ka3 {[%clk 0:00:04.6]}
34... b4+ {[%clk 0:00:14.3]} 35. Kxa4 {[%clk 0:00:03.7]} 35... Ra8+ {[%clk
0:00:14.4]} 36. Ra7 {[%clk 0:00:03.8]} 36... Rd8 {[%clk 0:00:14.4]} 37. Red7
{[%clk 0:00:03.8]} 37... Re8 {[%clk 0:00:14]} 38. Rac7# {[%clk 0:00:03.9]} 1-0

[Event "Late-Titled-Tuesday-Blitz-February-27-2024"]
[Site "Chess.com"]
[Date "2024.02.27"]
[Round "2"]
[White "Kosak12"]
[Black "jamengrand"]
[Result "1-0"]
[WhiteElo "2794"]
[BlackElo "2395"]
[TimeControl "180+1"]
[EndTime "14:17:34 PST"]
[Termination "Kosak12 won by resignation"]

1. e4 {[%clk 0:02:59.7]} 1... e5 {[%clk 0:02:55.6]} 2. Nf3 {[%clk 0:02:59.8]}
2... Nc6 {[%clk 0:02:55.8]} 3. Bb5 {[%clk 0:03:00.4]} 3... a6 {[%clk 0:02:56]}
4. Ba4 {[%clk 0:03:00.9]} 4... Nf6 {[%clk 0:02:56.1]} 5. O-O {[%clk 0:03:01.2]}
5... Be7 {[%clk 0:02:56.3]} 6. Re1 {[%clk 0:03:01.2]} 6... b5 {[%clk 0:02:56.4]}
7. Bb3 {[%clk 0:03:01.7]} 7... Bb7 {[%clk 0:02:56.6]} 8. d3 {[%clk 0:03:01.5]}
8... d5 {[%clk 0:02:55.2]} 9. exd5 {[%clk 0:02:59.5]} 9... Nxd5 {[%clk
0:02:55.3]} 10. Nxe5 {[%clk 0:02:55]} 10... Nxe5 {[%clk 0:02:55.2]} 11. Rxe5
{[%clk 0:02:55.2]} 11... O-O {[%clk 0:02:54.1]} 12. Qf3 {[%clk 0:02:55.1]} 12...
c6 {[%clk 0:02:40.8]} 13. Nc3 {[%clk 0:02:48.4]} 13... Bd6 {[%clk 0:02:35.6]}
14. Re1 {[%clk 0:02:46.4]} 14... Nxc3 {[%clk 0:02:30.8]} 15. bxc3 {[%clk
0:02:46.5]} 15... Qc7 {[%clk 0:02:29.1]} 16. g3 {[%clk 0:02:43.9]} 16... c5
{[%clk 0:02:28.4]} 17. Bd5 {[%clk 0:02:44]} 17... Bxd5 {[%clk 0:02:24.3]} 18.
Qxd5 {[%clk 0:02:44.9]} 18... Rad8 {[%clk 0:02:22.7]} 19. Qf5 {[%clk 0:02:22.1]}
19... g6 {[%clk 0:02:06.2]} 20. Qf6 {[%clk 0:02:21.9]} 20... Rde8 {[%clk
0:02:00.7]} 21. Bh6 {[%clk 0:02:19.5]} 21... Be5 {[%clk 0:02:00.8]} 22. Rxe5
{[%clk 0:02:01.2]} 22... Qxe5 {[%clk 0:02:01.7]} 23. Qxe5 {[%clk 0:02:01.5]}
23... Rxe5 {[%clk 0:02:01.5]} 24. Bxf8 {[%clk 0:02:02.1]} 24... Kxf8 {[%clk
0:02:02]} 25. Kf1 {[%clk 0:02:01.7]} 25... Rh5 {[%clk 0:01:59.6]} 26. Kg2 {[%clk
0:01:32.6]} 26... Re5 {[%clk 0:01:58.8]} 27. Kf3 {[%clk 0:01:32.8]} 27... Ke7
{[%clk 0:01:56.6]} 28. a4 {[%clk 0:01:32.7]} 28... b4 {[%clk 0:01:55.9]} 29. d4
{[%clk 0:01:14.2]} 29... Rd5 {[%clk 0:01:46.4]} 30. cxb4 {[%clk 0:01:07.8]}
30... Rxd4 {[%clk 0:01:40.6]} 31. bxc5 {[%clk 0:01:03.3]} 31... Rc4 {[%clk
0:01:40.4]} 32. Rb1 {[%clk 0:00:58.4]} 32... Rxa4 {[%clk 0:01:33.1]} 33. Rb7+
{[%clk 0:00:56.4]} 33... Ke6 {[%clk 0:01:32.6]} 34. Ke3 {[%clk 0:00:49.8]} 34...
Rc4 {[%clk 0:01:31.2]} 35. Kd3 {[%clk 0:00:48.4]} 35... Rxc5 {[%clk 0:00:53.7]}
36. Rb6+ {[%clk 0:00:48.2]} 36... Kf5 {[%clk 0:00:53.9]} 37. Rxa6 {[%clk
0:00:48.5]} 37... Kg4 {[%clk 0:00:54]} 38. Rf6 {[%clk 0:00:46.3]} 38... Rc7
{[%clk 0:00:45.9]} 39. h4 {[%clk 0:00:46.4]} 39... Rd7+ {[%clk 0:00:37.9]} 40.
Kc3 {[%clk 0:00:43]} 40... Rc7+ {[%clk 0:00:37.7]} 41. Kb3 {[%clk 0:00:43.3]}
41... Rb7+ {[%clk 0:00:37.9]} 42. Ka4 {[%clk 0:00:43.4]} 42... Rc7 {[%clk
0:00:36.1]} 43. Rf4+ {[%clk 0:00:43.3]} 43... Kh3 {[%clk 0:00:33.9]} 44. c4
{[%clk 0:00:43.6]} 44... Kg2 {[%clk 0:00:20.8]} 45. Kb5 {[%clk 0:00:43]} 45...
f5 {[%clk 0:00:19.2]} 46. c5 {[%clk 0:00:43.1]} 46... Kf1 {[%clk 0:00:18.6]} 47.
c6 {[%clk 0:00:41.7]} 47... Ke2 {[%clk 0:00:18.6]} 48. Kb6 {[%clk 0:00:41.6]}
48... Re7 {[%clk 0:00:15.1]} 49. c7 {[%clk 0:00:41.9]} 1-0

[Event "Late-Titled-Tuesday-Blitz-February-27-2024"]
[Site "Chess.com"]
[Date "2024.02.27"]
[Round "2"]
[White "xakevicius91"]
[Black "Yaacovn"]
[Result "0-1"]
[WhiteElo "2558"]
[BlackElo "2839"]
[TimeControl "180+1"]
[EndTime "14:17:35 PST"]
[Termination "Yaacovn won on time"]

1. e4 {[%clk 0:03:00.9]} 1... c6 {[%clk 0:02:49.8]} 2. d4 {[%clk 0:02:59.3]}
2... d5 {[%clk 0:02:37.5]} 3. e5 {[%clk 0:02:58.8]} 3... Bf5 {[%clk 0:02:36.7]}
4. Nd2 {[%clk 0:02:59.2]} 4... e6 {[%clk 0:02:28.8]} 5. Nb3 {[%clk 0:02:58.5]}
5... Ne7 {[%clk 0:02:28.3]} 6. Nf3 {[%clk 0:02:58.4]} 6... Bg6 {[%clk
0:02:28.5]} 7. Be2 {[%clk 0:02:58.6]} 7... Nf5 {[%clk 0:02:28.5]} 8. a4 {[%clk
0:02:58.1]} 8... Na6 {[%clk 0:02:23.2]} 9. O-O {[%clk 0:02:56.8]} 9... Be7
{[%clk 0:02:21.9]} 10. c3 {[%clk 0:02:52.8]} 10... O-O {[%clk 0:02:21.4]} 11. a5
{[%clk 0:02:51.3]} 11... Nc7 {[%clk 0:02:20.7]} 12. Ne1 {[%clk 0:02:46.5]} 12...
f6 {[%clk 0:02:17.8]} 13. Nd3 {[%clk 0:02:46]} 13... Nb5 {[%clk 0:02:15.2]} 14.
Nbc5 {[%clk 0:02:41.6]} 14... Bxc5 {[%clk 0:02:13.7]} 15. Nxc5 {[%clk
0:02:41.4]} 15... Qe7 {[%clk 0:02:12]} 16. Nd3 {[%clk 0:02:37.9]} 16... Nh4
{[%clk 0:02:09]} 17. Bf4 {[%clk 0:02:21.2]} 17... Be4 {[%clk 0:02:01.8]} 18. f3
{[%clk 0:02:15.8]} 18... fxe5 {[%clk 0:01:40]} 19. Bxe5 {[%clk 0:02:06.1]} 19...
Qg5 {[%clk 0:01:37.4]} 20. Bg3 {[%clk 0:02:01.7]} 20... Bxd3 {[%clk 0:01:16.9]}
21. Bxd3 {[%clk 0:01:53.8]} 21... Nf5 {[%clk 0:01:17.1]} 22. Bxf5 {[%clk
0:01:34.9]} 22... exf5 {[%clk 0:01:15.9]} 23. Be5 {[%clk 0:01:33.2]} 23... Rae8
{[%clk 0:01:11.9]} 24. Re1 {[%clk 0:01:28.5]} 24... a6 {[%clk 0:01:10.5]} 25.
Qd3 {[%clk 0:01:22.2]} 25... h6 {[%clk 0:01:04.1]} 26. c4 {[%clk 0:01:17.6]}
26... dxc4 {[%clk 0:00:59.8]} 27. Qxc4+ {[%clk 0:01:18.5]} 27... Kh7 {[%clk
0:00:58.2]} 28. Re2 {[%clk 0:01:17.7]} 28... Re7 {[%clk 0:00:50.3]} 29. Rae1
{[%clk 0:01:16.4]} 29... Rfe8 {[%clk 0:00:50.5]} 30. Qd3 {[%clk 0:00:45.8]}
30... Qg6 {[%clk 0:00:48.8]} 31. Kf2 {[%clk 0:00:43.7]} 31... Rd7 {[%clk
0:00:39.7]} 32. Qc4 {[%clk 0:00:29.8]} 32... Red8 {[%clk 0:00:39]} 33. Qb3
{[%clk 0:00:20.4]} 33... Qg5 {[%clk 0:00:35.7]} 34. Kg1 {[%clk 0:00:18.7]} 34...
Qh5 {[%clk 0:00:33.8]} 35. Qb4 {[%clk 0:00:14.9]} 35... Qf7 {[%clk 0:00:31.7]}
36. Rd2 {[%clk 0:00:08.7]} 36... Rd5 {[%clk 0:00:30.4]} 37. Qc4 {[%clk
0:00:04.7]} 37... R8d7 {[%clk 0:00:25.7]} 38. Qc2 {[%clk 0:00:04.2]} 38... Qg6
{[%clk 0:00:24.6]} 39. Qc4 {[%clk 0:00:03.4]} 39... c5 {[%clk 0:00:23.5]} 40.
Red1 {[%clk 0:00:02.5]} 40... cxd4 {[%clk 0:00:22.8]} 41. Bxd4 {[%clk
0:00:02.6]} 41... Qd6 {[%clk 0:00:20.3]} 42. Be3 {[%clk 0:00:02.3]} 42... Qe6
{[%clk 0:00:17.1]} 0-1

[Event "Late-Titled-Tuesday-Blitz-February-27-2024"]
[Site "Chess.com"]
[Date "2024.02.27"]
[Round "2"]
[White "rychessmaster1"]
[Black "Mikayel99"]
[Result "0-1"]
[WhiteElo "2713"]
[BlackElo "2541"]
[TimeControl "180+1"]
[EndTime "14:17:37 PST"]
[Termination "Mikayel99 won by resignation"]

1. d4 {[%clk 0:03:00.9]} 1... Nf6 {[%clk 0:02:55.6]} 2. Nc3 {[%clk 0:03:00.7]}
2... d5 {[%clk 0:02:55.2]} 3. Bf4 {[%clk 0:03:00.9]} 3... c5 {[%clk 0:02:55.7]}
4. e4 {[%clk 0:03:00.7]} 4... Nxe4 {[%clk 0:02:54.3]} 5. Nxe4 {[%clk 0:03:00.3]}
5... dxe4 {[%clk 0:02:55.2]} 6. dxc5 {[%clk 0:03:00.8]} 6... Qxd1+ {[%clk
0:02:52.8]} 7. Rxd1 {[%clk 0:03:00.2]} 7... Nc6 {[%clk 0:02:53.5]} 8. Bc4 {[%clk
0:02:28.6]} 8... Bg4 {[%clk 0:02:37.1]} 9. Ne2 {[%clk 0:02:22.6]} 9... e6 {[%clk
0:02:31.6]} 10. Bd6 {[%clk 0:02:21.7]} 10... Bxd6 {[%clk 0:02:29.2]} 11. Rxd6
{[%clk 0:02:20.4]} 11... Rd8 {[%clk 0:02:25.4]} 12. Rxd8+ {[%clk 0:02:18.5]}
12... Kxd8 {[%clk 0:02:23.9]} 13. c3 {[%clk 0:02:16.4]} 13... Kc7 {[%clk
0:02:20.3]} 14. h3 {[%clk 0:02:04.7]} 14... Bxe2 {[%clk 0:02:13.2]} 15. Kxe2
{[%clk 0:02:04.8]} 15... Ne5 {[%clk 0:02:12.6]} 16. Bb5 {[%clk 0:02:04.8]} 16...
Rd8 {[%clk 0:02:07.3]} 17. Rd1 {[%clk 0:01:49.4]} 17... Rxd1 {[%clk 0:02:04]}
18. Kxd1 {[%clk 0:01:50.3]} 18... a6 {[%clk 0:02:04.2]} 19. Be2 {[%clk
0:01:50.4]} 19... Kc6 {[%clk 0:01:54.7]} 20. b4 {[%clk 0:01:50.7]} 20... f5
{[%clk 0:01:51]} 21. Kd2 {[%clk 0:01:41.3]} 21... g5 {[%clk 0:01:47.8]} 22. c4
{[%clk 0:01:34.3]} 22... Nd7 {[%clk 0:01:31.4]} 23. Bd1 {[%clk 0:01:22.2]} 23...
Nf6 {[%clk 0:01:29.2]} 24. Kc3 {[%clk 0:01:16]} 24... e5 {[%clk 0:01:27.4]} 25.
Ba4+ {[%clk 0:01:16.2]} 25... Kc7 {[%clk 0:01:26]} 26. b5 {[%clk 0:01:16.6]}
26... a5 {[%clk 0:01:20.4]} 27. Bd1 {[%clk 0:01:14.4]} 27... Nd7 {[%clk
0:01:15.3]} 28. c6 {[%clk 0:00:49.8]} 28... bxc6 {[%clk 0:01:16.2]} 29. Bh5
{[%clk 0:00:42.7]} 29... Nf6 {[%clk 0:00:49.4]} 30. Bf7 {[%clk 0:00:41]} 30...
Kb6 {[%clk 0:00:49.6]} 31. a4 {[%clk 0:00:38.4]} 31... f4 {[%clk 0:00:44.7]} 32.
Be6 {[%clk 0:00:37.1]} 32... h5 {[%clk 0:00:41]} 33. Bf5 {[%clk 0:00:25.9]}
33... Kc5 {[%clk 0:00:30.9]} 34. Bg6 {[%clk 0:00:22]} 34... h4 {[%clk 0:00:27]}
35. Bf5 {[%clk 0:00:22.1]} 35... f3 {[%clk 0:00:20.7]} 36. gxf3 {[%clk
0:00:19.2]} 36... exf3 {[%clk 0:00:21.6]} 37. Kd3 {[%clk 0:00:18.6]} 37... g4
{[%clk 0:00:20]} 38. Ke3 {[%clk 0:00:17.1]} 38... e4 {[%clk 0:00:14.4]} 39. Be6
{[%clk 0:00:10]} 39... g3 {[%clk 0:00:12.3]} 40. fxg3 {[%clk 0:00:10.5]} 40...
hxg3 {[%clk 0:00:13.2]} 41. h4 {[%clk 0:00:11.3]} 41... g2 {[%clk 0:00:08.9]}
42. Kf2 {[%clk 0:00:11.8]} 42... e3+ {[%clk 0:00:09.5]} 43. Kg1 {[%clk
0:00:11.5]} 43... e2 {[%clk 0:00:09.8]} 44. Kf2 {[%clk 0:00:09.5]} 44... e1=Q+
{[%clk 0:00:09.9]} 45. Kxe1 {[%clk 0:00:09.9]} 45... g1=Q+ {[%clk 0:00:10.6]}
0-1

[Event "Late-Titled-Tuesday-Blitz-February-27-2024"]
[Site "Chess.com"]
[Date "2024.02.27"]
[Round "2"]
[White "zajka-molotok"]
[Black "northridgehawk"]
[Result "1-0"]
[WhiteElo "2509"]
[BlackElo "2269"]
[TimeControl "180+1"]
[EndTime "14:17:37 PST"]
[Termination "zajka-molotok won by resignation"]

1. e4 {[%clk 0:02:56.2]} 1... e5 {[%clk 0:02:58.8]} 2. Nf3 {[%clk 0:02:56]} 2...
Nc6 {[%clk 0:02:52.6]} 3. Bc4 {[%clk 0:02:55.5]} 3... Nf6 {[%clk 0:02:51.7]} 4.
d3 {[%clk 0:02:55.3]} 4... Bc5 {[%clk 0:02:51.1]} 5. c3 {[%clk 0:02:53.8]} 5...
d6 {[%clk 0:02:51.2]} 6. O-O {[%clk 0:02:52.4]} 6... O-O {[%clk 0:02:50.6]} 7.
Bg5 {[%clk 0:02:50.9]} 7... h6 {[%clk 0:02:50.4]} 8. Bh4 {[%clk 0:02:50]} 8...
g5 {[%clk 0:02:50.4]} 9. Nxg5 {[%clk 0:02:46.9]} 9... hxg5 {[%clk 0:02:51.3]}
10. Bxg5 {[%clk 0:02:47.4]} 10... Kg7 {[%clk 0:02:51.4]} 11. Qf3 {[%clk
0:02:42.8]} 11... Rg8 {[%clk 0:02:47.8]} 12. Qg3 {[%clk 0:02:17.9]} 12... Kf8
{[%clk 0:02:33.7]} 13. Qh4 {[%clk 0:02:17.1]} 13... Rg6 {[%clk 0:02:32.3]} 14.
Kh1 {[%clk 0:02:12.5]} 14... Kg7 {[%clk 0:02:08.1]} 15. f4 {[%clk 0:02:10.6]}
15... exf4 {[%clk 0:02:06]} 16. d4 {[%clk 0:02:04.7]} 16... Nxd4 {[%clk
0:02:00.2]} 17. cxd4 {[%clk 0:02:02.6]} 17... Bxd4 {[%clk 0:02:00.5]} 18. Nc3
{[%clk 0:01:59.3]} 18... Be6 {[%clk 0:01:57.2]} 19. e5 {[%clk 0:01:39.7]} 19...
Bxe5 {[%clk 0:01:48.6]} 20. Bd3 {[%clk 0:01:38.4]} 20... Qh8 {[%clk 0:01:40.4]}
21. Bxg6 {[%clk 0:01:36.6]} 21... Qxh4 {[%clk 0:01:39.6]} 22. Bxh4 {[%clk
0:01:35.9]} 22... Kxg6 {[%clk 0:01:40]} 23. Ne2 {[%clk 0:01:28.6]} 23... Nd5
{[%clk 0:01:33.3]} 24. Rae1 {[%clk 0:01:10.7]} 24... Rh8 {[%clk 0:01:32.4]} 25.
Bf2 {[%clk 0:01:09]} 25... f3 {[%clk 0:01:25.3]} 26. gxf3 {[%clk 0:01:05.4]}
26... Bxh2 {[%clk 0:01:17.3]} 27. Bd4 {[%clk 0:00:56.6]} 27... Bg3+ {[%clk
0:01:09]} 28. Bxh8 {[%clk 0:00:55.7]} 28... Bxe1 {[%clk 0:01:08.1]} 29. Rxe1
{[%clk 0:00:56.6]} 29... f6 {[%clk 0:01:04.7]} 30. Rg1+ {[%clk 0:00:55.5]} 30...
Kh7 {[%clk 0:01:03.8]} 31. Bg7 {[%clk 0:00:54.9]} 31... Bd7 {[%clk 0:00:52.2]}
32. Nc3 {[%clk 0:00:53.9]} 32... Nb4 {[%clk 0:00:44.9]} 33. Bxf6 {[%clk
0:00:52.4]} 33... Bc6 {[%clk 0:00:45.4]} 34. Rg7+ {[%clk 0:00:51.4]} 34... Kh6
{[%clk 0:00:44.9]} 35. Rxc7 {[%clk 0:00:50.4]} 35... Bxf3+ {[%clk 0:00:44.8]}
36. Kg1 {[%clk 0:00:49.8]} 36... Nd3 {[%clk 0:00:45]} 37. Nb5 {[%clk 0:00:43.7]}
37... Kg6 {[%clk 0:00:40.5]} 38. Bc3 {[%clk 0:00:43.2]} 38... d5 {[%clk
0:00:36.3]} 39. Nd4 {[%clk 0:00:41]} 39... Be4 {[%clk 0:00:35.7]} 40. Rxb7
{[%clk 0:00:40.7]} 40... a5 {[%clk 0:00:34.8]} 41. Ra7 {[%clk 0:00:40.3]} 41...
Kg5 {[%clk 0:00:29.5]} 42. Rxa5 {[%clk 0:00:40]} 42... Kf4 {[%clk 0:00:29.9]}
43. Ra7 {[%clk 0:00:39.3]} 43... Ke3 {[%clk 0:00:30.2]} 44. a4 {[%clk
0:00:38.4]} 44... Nf4 {[%clk 0:00:16.3]} 45. a5 {[%clk 0:00:38.1]} 45... Nh3+
{[%clk 0:00:16.2]} 46. Kh2 {[%clk 0:00:37.8]} 46... Nf2 {[%clk 0:00:15.6]} 47.
a6 {[%clk 0:00:37.7]} 47... Kf4 {[%clk 0:00:16.1]} 48. Rf7+ {[%clk 0:00:34.6]}
48... Ke3 {[%clk 0:00:15.7]} 49. Rxf2 {[%clk 0:00:34.2]} 49... Kxf2 {[%clk
0:00:16.6]} 50. a7 {[%clk 0:00:34.2]} 50... Ke3 {[%clk 0:00:17.1]} 51. a8=Q
{[%clk 0:00:33.7]} 51... Kd3 {[%clk 0:00:18]} 52. Qa6+ {[%clk 0:00:33.3]} 52...
Ke3 {[%clk 0:00:18.5]} 53. Qe2+ {[%clk 0:00:30.8]} 53... Kf4 {[%clk 0:00:18.7]}
54. Qf2+ {[%clk 0:00:30.1]} 54... Ke5 {[%clk 0:00:19.6]} 55. Nb5+ {[%clk
0:00:28]} 1-0